[Event "Titled Tuesday Blitz May 4 2021"]
[White "Sokolov, Andrey M."]
[Black "Kabanov, Nikolai"]
[WhiteFideId "4171438"]
[BlackFideId "4127820"]
[WhiteElo "2349"]
[BlackElo "2376"]
[Result "0-1"]
[Round "08"]
[TimeControl "180+1"]
[Date "2021.05.04"]
[WhiteClock "0:00:06"]
[BlackClock "0:00:18"]

1. d4 {[%clk 0:03:00]}  Nf6 {[%clk 0:02:58]} 2. Nf3 {[%clk 0:03:00]}  e6 {[%clk 0:02:58]} 3. Bf4 {[%clk 0:02:59]}  b6 {[%clk 0:02:58]} 4. e3 {[%clk 0:02:59]}  Bb7 {[%clk 0:02:58]} 5. Nbd2 {[%clk 0:02:58]}  c5 {[%clk 0:02:55]} 6. c3 {[%clk 0:02:57]}  d5 {[%clk 0:02:54]} 7. Bd3 {[%clk 0:02:56]}  Bd6 {[%clk 0:02:54]} 8. Ne5 {[%clk 0:02:56]}  Bxe5 {[%clk 0:02:53]} 9. dxe5 {[%clk 0:02:51]}  Nfd7 {[%clk 0:02:52]} 10. Qg4 {[%clk 0:02:50]}  g6 {[%clk 0:02:27]} 11. h4 {[%clk 0:02:49]}  h5 {[%clk 0:02:25]} 12. Qg3 {[%clk 0:02:49]}  Qc7 {[%clk 0:02:17]} 13. Nf3 {[%clk 0:02:43]}  Nc6 {[%clk 0:02:12]} 14. O-O {[%clk 0:02:26]}  O-O-O {[%clk 0:02:01]} 15. a3 {[%clk 0:02:19]}  Ne7 {[%clk 0:01:59]} 16. Bg5 {[%clk 0:02:16]}  Rde8 {[%clk 0:01:59]} 17. b4 {[%clk 0:01:50]}  c4 {[%clk 0:01:57]} 18. Bc2 {[%clk 0:01:48]}  Nf5 {[%clk 0:01:54]} 19. Bxf5 {[%clk 0:01:46]}  exf5 {[%clk 0:01:53]} 20. Bf4 {[%clk 0:01:43]}  Qd8 {[%clk 0:01:31]} 21. Nd4 {[%clk 0:01:38]}  a6 {[%clk 0:01:24]} 22. b5 {[%clk 0:01:32]}  a5 {[%clk 0:01:23]} 23. Nc6 {[%clk 0:01:19]}  Bxc6 {[%clk 0:01:22]} 24. bxc6 {[%clk 0:01:19]}  Nc5 {[%clk 0:01:22]} 25. Bg5 {[%clk 0:01:17]}  Qc7 {[%clk 0:01:17]} 26. Bf6 {[%clk 0:01:13]}  Rhg8 {[%clk 0:01:16]} 27. f3 {[%clk 0:01:13]}  Qxc6 {[%clk 0:01:14]} 28. e6 {[%clk 0:01:03]}  Rxe6 {[%clk 0:01:05]} 29. Bd4 {[%clk 0:01:03]}  Rge8 {[%clk 0:01:04]} 30. Rf2 {[%clk 0:00:53]}  Nb3 {[%clk 0:01:03]} 31. Rb1 {[%clk 0:00:53]}  Qc7 {[%clk 0:00:55]} 32. f4 {[%clk 0:00:43]}  Re4 {[%clk 0:00:51]} 33. Rfb2 {[%clk 0:00:37]}  a4 {[%clk 0:00:50]} 34. Qf2 {[%clk 0:00:34]}  Qd6 {[%clk 0:00:44]} 35. Qg3 {[%clk 0:00:26]}  Kb7 {[%clk 0:00:43]} 36. Qg5 {[%clk 0:00:25]}  Qxa3 {[%clk 0:00:35]} 37. Qf6 {[%clk 0:00:22]}  R4e6 {[%clk 0:00:25]} 38. Qxf7+ {[%clk 0:00:21]}  Qe7 {[%clk 0:00:25]} 39. Qxe7+ {[%clk 0:00:19]}  R8xe7 {[%clk 0:00:26]} 40. Be5 {[%clk 0:00:19]}  b5 {[%clk 0:00:25]} 41. Rd1 {[%clk 0:00:18]}  Kc6 {[%clk 0:00:25]} 42. Rd4 {[%clk 0:00:16]}  Rxe5 {[%clk 0:00:19]} 43. fxe5 {[%clk 0:00:16]}  Rxe5 {[%clk 0:00:20]} 44. Rd1 {[%clk 0:00:15]}  Rxe3 {[%clk 0:00:20]} 45. Kf2 {[%clk 0:00:15]}  Rxc3 {[%clk 0:00:19]} 46. Re2 {[%clk 0:00:14]}  a3 {[%clk 0:00:19]} 47. Re6+ {[%clk 0:00:14]}  Kc5 {[%clk 0:00:20]} 48. Rxg6 {[%clk 0:00:10]}  a2 {[%clk 0:00:19]} 49. Ra6 {[%clk 0:00:09]}  a1=Q {[%clk 0:00:19]} 50. Raxa1 {[%clk 0:00:08]}  Nxa1 {[%clk 0:00:20]} 51. Rxa1 {[%clk 0:00:08]}  d4 {[%clk 0:00:19]} 52. Ke2 {[%clk 0:00:07]}  d3+ {[%clk 0:00:19]} 53. Kd2 {[%clk 0:00:07]}  Rc2+ {[%clk 0:00:20]} 54. Ke3 {[%clk 0:00:07]}  Rxg2 {[%clk 0:00:20]} 55. Rf1 {[%clk 0:00:06]}  Re2+ {[%clk 0:00:19]} 56. Kf4 {[%clk 0:00:06]}  d2 {[%clk 0:00:18]} 57. Kxf5 {[%clk 0:00:06]}  Re1 {[%clk 0:00:18]} 0-1


[Site "https://www.chess.com"]

[Event "Titled Tuesday Blitz May 4 2021"]
[White "Srihari L R"]
[Black "Demin, Vladimir"]
[WhiteFideId "46617116"]
[BlackFideId "4167457"]
[WhiteElo "2121"]
[BlackElo "2491"]
[Result "1/2-1/2"]
[Round "08"]
[TimeControl "180+1"]
[Date "2021.05.04"]
[WhiteClock "0:01:19"]
[BlackClock "0:02:09"]

1. d4 {[%clk 0:02:00]}  Nf6 {[%clk 0:02:58]} 2. Bg5 {[%clk 0:02:00]}  e6 {[%clk 0:02:55]} 3. Nd2 {[%clk 0:02:00]}  d5 {[%clk 0:02:55]} 4. e3 {[%clk 0:01:59]}  Be7 {[%clk 0:02:54]} 5. Bd3 {[%clk 0:01:59]}  O-O {[%clk 0:02:53]} 6. Ngf3 {[%clk 0:01:59]}  b6 {[%clk 0:02:54]} 7. Ne5 {[%clk 0:01:59]}  Bb7 {[%clk 0:02:53]} 8. f4 {[%clk 0:01:58]}  Nbd7 {[%clk 0:02:53]} 9. Qf3 {[%clk 0:01:57]}  h6 {[%clk 0:02:53]} 10. Bh4 {[%clk 0:01:56]}  Nxe5 {[%clk 0:02:53]} 11. fxe5 {[%clk 0:01:56]}  Nd7 {[%clk 0:02:54]} 12. Bxe7 {[%clk 0:01:56]}  Qxe7 {[%clk 0:02:55]} 13. O-O {[%clk 0:01:56]}  f5 {[%clk 0:02:48]} 14. exf6 {[%clk 0:01:56]}  Rxf6 {[%clk 0:02:47]} 15. Qg3 {[%clk 0:01:56]}  Qd6 {[%clk 0:02:28]} 16. Qxd6 {[%clk 0:01:47]}  cxd6 {[%clk 0:02:28]} 17. Rxf6 {[%clk 0:01:47]}  Nxf6 {[%clk 0:02:22]} 18. Rf1 {[%clk 0:01:47]}  e5 {[%clk 0:02:22]} 19. c3 {[%clk 0:01:46]}  Re8 {[%clk 0:02:20]} 20. Bg6 {[%clk 0:01:38]}  Re7 {[%clk 0:02:16]} 21. h3 {[%clk 0:01:36]}  exd4 {[%clk 0:02:14]} 22. exd4 {[%clk 0:01:35]}  Re2 {[%clk 0:02:08]} 23. Rf2 {[%clk 0:01:33]}  Re1+ {[%clk 0:02:09]} 24. Rf1 {[%clk 0:01:33]}  Re2 {[%clk 0:02:09]} 25. Rf2 {[%clk 0:01:22]}  Re1+ {[%clk 0:02:09]} 26. Rf1 {[%clk 0:01:19]}  Re2 {[%clk 0:02:09]} 1/2-1/2


[Site "https://www.chess.com"]

[Event "Titled Tuesday Blitz May 4 2021"]
[White "Todorovic, Bojan"]
[Black "Nozdrachev, Leonid"]
[WhiteFideId "917087"]
[BlackFideId "24113433"]
[WhiteElo "2266"]
[BlackElo "2246"]
[Result "0-1"]
[Round "08"]
[TimeControl "180+1"]
[Date "2021.05.04"]
[WhiteClock "0:00:01"]
[BlackClock "0:00:02"]

1. Nf3 {[%clk 0:02:59]}  Nf6 {[%clk 0:02:58]} 2. g3 {[%clk 0:02:58]}  g6 {[%clk 0:02:57]} 3. Bg2 {[%clk 0:02:57]}  Bg7 {[%clk 0:02:57]} 4. O-O {[%clk 0:02:57]}  O-O {[%clk 0:02:58]} 5. c4 {[%clk 0:02:56]}  d6 {[%clk 0:02:57]} 6. b3 {[%clk 0:02:53]}  e5 {[%clk 0:02:53]} 7. Bb2 {[%clk 0:02:51]}  Nc6 {[%clk 0:02:53]} 8. d4 {[%clk 0:02:43]}  Re8 {[%clk 0:02:50]} 9. dxe5 {[%clk 0:02:38]}  Ng4 {[%clk 0:02:49]} 10. Nc3 {[%clk 0:02:34]}  Ncxe5 {[%clk 0:02:46]} 11. h3 {[%clk 0:02:13]}  Nxf3+ {[%clk 0:02:43]} 12. exf3 {[%clk 0:02:12]}  Nh6 {[%clk 0:02:35]} 13. Qd2 {[%clk 0:02:04]}  Nf5 {[%clk 0:02:33]} 14. f4 {[%clk 0:02:02]}  c6 {[%clk 0:02:28]} 15. Rfe1 {[%clk 0:02:00]}  Be6 {[%clk 0:02:27]} 16. Ne4 {[%clk 0:01:57]}  c5 {[%clk 0:02:18]} 17. Bxg7 {[%clk 0:01:50]}  Kxg7 {[%clk 0:02:19]} 18. Qb2+ {[%clk 0:01:23]}  Nd4 {[%clk 0:02:18]} 19. Red1 {[%clk 0:01:22]}  Bf5 {[%clk 0:02:12]} 20. Rxd4 {[%clk 0:01:19]}  cxd4 {[%clk 0:02:09]} 21. Qxd4+ {[%clk 0:01:19]}  f6 {[%clk 0:02:01]} 22. Nxd6 {[%clk 0:01:17]}  Re7 {[%clk 0:01:44]} 23. c5 {[%clk 0:01:16]}  Rb8 {[%clk 0:01:30]} 24. Rd1 {[%clk 0:01:13]}  Qa5 {[%clk 0:01:12]} 25. g4 {[%clk 0:01:00]}  Bc2 {[%clk 0:01:05]} 26. Rd2 {[%clk 0:00:58]}  Qxa2 {[%clk 0:00:50]} 27. g5 {[%clk 0:00:51]}  Rf8 {[%clk 0:00:48]} 28. Kh2 {[%clk 0:00:41]}  Qxb3 {[%clk 0:00:45]} 29. Bxb7 {[%clk 0:00:27]}  Rxb7 {[%clk 0:00:33]} 30. Nxb7 {[%clk 0:00:27]}  Qxb7 {[%clk 0:00:32]} 31. Rxc2 {[%clk 0:00:26]}  Qc7 {[%clk 0:00:30]} 32. Qd6 {[%clk 0:00:25]}  Qxd6 {[%clk 0:00:23]} 33. cxd6 {[%clk 0:00:26]}  fxg5 {[%clk 0:00:11]} 34. fxg5 {[%clk 0:00:26]}  Rf5 {[%clk 0:00:11]} 35. Rd2 {[%clk 0:00:21]}  Rf8 {[%clk 0:00:09]} 36. Re2 {[%clk 0:00:20]}  Rd8 {[%clk 0:00:07]} 37. Re7+ {[%clk 0:00:20]}  Kg8 {[%clk 0:00:03]} 38. d7 {[%clk 0:00:15]}  Kf8 {[%clk 0:00:03]} 39. Rxh7 {[%clk 0:00:15]}  a5 {[%clk 0:00:03]} 40. h4 {[%clk 0:00:13]}  a4 {[%clk 0:00:03]} 41. h5 {[%clk 0:00:13]}  a3 {[%clk 0:00:02]} 42. hxg6 {[%clk 0:00:10]}  a2 {[%clk 0:00:03]} 43. Rh8+ {[%clk 0:00:10]}  Kg7 {[%clk 0:00:01]} 44. Rxd8 {[%clk 0:00:10]}  a1=Q {[%clk 0:00:02]} 45. Rf8 {[%clk 0:00:08]}  Qe5+ {[%clk 0:00:01]} 46. f4 {[%clk 0:00:02]}  Qe2+ {[%clk 0:00:01]} 47. Kg3 {[%clk 0:00:03]}  Qd3+ {[%clk 0:00:01]} 48. Kg4 {[%clk 0:00:02]}  Kxf8 {[%clk 0:00:02]} 49. f5 {[%clk 0:00:01]}  Kg7 {[%clk 0:00:02]} 50. f6+ {[%clk 0:00:01]}  Kxg6 {[%clk 0:00:02]} 0-1


[Site "https://www.chess.com"]

[Event "Titled Tuesday Blitz May 4 2021"]
[White "Torkkola, Henri"]
[Black "Zhou, Qiyu"]
[WhiteFideId "507660"]
[BlackFideId "505161"]
[WhiteElo "2137"]
[BlackElo "1925"]
[Result "0-1"]
[Round "08"]
[TimeControl "180+1"]
[Date "2021.05.04"]
[WhiteClock "0:00:03"]
[BlackClock "0:00:33"]

1. d4 {[%clk 0:03:00]}  Nf6 {[%clk 0:02:58]} 2. Bf4 {[%clk 0:03:01]}  g6 {[%clk 0:02:54]} 3. e3 {[%clk 0:03:01]}  Bg7 {[%clk 0:02:53]} 4. Nf3 {[%clk 0:03:01]}  d6 {[%clk 0:02:53]} 5. h3 {[%clk 0:03:01]}  O-O {[%clk 0:02:54]} 6. Be2 {[%clk 0:03:01]}  b6 {[%clk 0:02:52]} 7. O-O {[%clk 0:03:01]}  Bb7 {[%clk 0:02:52]} 8. a4 {[%clk 0:03:02]}  a5 {[%clk 0:02:50]} 9. Nbd2 {[%clk 0:03:01]}  Nbd7 {[%clk 0:02:49]} 10. c3 {[%clk 0:02:58]}  Re8 {[%clk 0:02:48]} 11. Bh2 {[%clk 0:02:55]}  e5 {[%clk 0:02:48]} 12. dxe5 {[%clk 0:02:51]}  dxe5 {[%clk 0:02:49]} 13. Qc2 {[%clk 0:02:48]}  Qe7 {[%clk 0:02:47]} 14. Rfd1 {[%clk 0:02:45]}  Rad8 {[%clk 0:02:46]} 15. Bb5 {[%clk 0:02:40]}  c6 {[%clk 0:02:43]} 16. Bf1 {[%clk 0:02:26]}  Nd5 {[%clk 0:02:36]} 17. Nc4 {[%clk 0:02:17]}  f6 {[%clk 0:02:26]} 18. Nfd2 {[%clk 0:02:10]}  f5 {[%clk 0:02:15]} 19. e4 {[%clk 0:01:44]}  fxe4 {[%clk 0:02:05]} 20. Nxe4 {[%clk 0:01:44]}  Nc5 {[%clk 0:02:00]} 21. Ned6 {[%clk 0:01:27]}  Rxd6 {[%clk 0:01:44]} 22. Nxd6 {[%clk 0:01:27]}  Qxd6 {[%clk 0:01:45]} 23. b4 {[%clk 0:00:47]}  axb4 {[%clk 0:01:42]} 24. cxb4 {[%clk 0:00:47]}  Nxb4 {[%clk 0:01:35]} 25. Qc4+ {[%clk 0:00:27]}  Nd5 {[%clk 0:01:34]} 26. a5 {[%clk 0:00:26]}  Ba6 {[%clk 0:01:09]} 27. Qa2 {[%clk 0:00:18]}  Bxf1 {[%clk 0:01:09]} 28. Rxf1 {[%clk 0:00:18]}  bxa5 {[%clk 0:01:09]} 29. Qxa5 {[%clk 0:00:17]}  Ne6 {[%clk 0:01:05]} 30. Rac1 {[%clk 0:00:16]}  Nef4 {[%clk 0:01:04]} 31. Qa6 {[%clk 0:00:11]}  Re6 {[%clk 0:00:58]} 32. Rfe1 {[%clk 0:00:09]}  h6 {[%clk 0:00:54]} 33. Bxf4 {[%clk 0:00:08]}  Nxf4 {[%clk 0:00:55]} 34. Red1 {[%clk 0:00:08]}  Nd5 {[%clk 0:00:50]} 35. Qc8+ {[%clk 0:00:06]}  Kh7 {[%clk 0:00:49]} 36. g3 {[%clk 0:00:05]}  e4 {[%clk 0:00:44]} 37. Ra1 {[%clk 0:00:04]}  e3 {[%clk 0:00:43]} 38. Ra8 {[%clk 0:00:04]}  exf2+ {[%clk 0:00:42]} 39. Kxf2 {[%clk 0:00:04]}  Qc5+ {[%clk 0:00:37]} 40. Kf1 {[%clk 0:00:03]}  Rf6+ {[%clk 0:00:35]} 41. Kg2 {[%clk 0:00:01]}  Qf2+ {[%clk 0:00:35]} 42. Kh1 {[%clk 0:00:01]}  Qf3+ {[%clk 0:00:31]} 43. Kh2 {[%clk 0:00:02]}  Qe2+ {[%clk 0:00:31]} 44. Kh1 {[%clk 0:00:02]}  Qe4+ {[%clk 0:00:31]} 45. Kh2 {[%clk 0:00:03]}  Rf2+ {[%clk 0:00:32]} 46. Kg1 {[%clk 0:00:03]}  Qg2# {[%clk 0:00:33]} 0-1


[Site "https://www.chess.com"]

[Event "Titled Tuesday Blitz May 4 2021"]
[White "Vega Gutierrez, Sabrina"]
[Black "Peralta, Eduardo"]
[WhiteFideId "2219026"]
[BlackFideId "3700062"]
[WhiteElo "2281"]
[BlackElo "2205"]
[Result "0-1"]
[Round "08"]
[TimeControl "180+1"]
[Date "2021.05.04"]
[WhiteClock "0:00:04"]
[BlackClock "0:00:55"]

1. e4 {[%clk 0:03:00]}  c5 {[%clk 0:02:57]} 2. Nf3 {[%clk 0:02:57]}  Nc6 {[%clk 0:02:58]} 3. d4 {[%clk 0:02:58]}  cxd4 {[%clk 0:02:59]} 4. Nxd4 {[%clk 0:02:58]}  Nf6 {[%clk 0:02:59]} 5. Nc3 {[%clk 0:02:56]}  d6 {[%clk 0:03:00]} 6. Bg5 {[%clk 0:02:52]}  e6 {[%clk 0:02:59]} 7. Qd2 {[%clk 0:02:47]}  Be7 {[%clk 0:02:59]} 8. O-O-O {[%clk 0:02:40]}  O-O {[%clk 0:02:58]} 9. Nxc6 {[%clk 0:02:17]}  bxc6 {[%clk 0:02:57]} 10. Qe3 {[%clk 0:01:27]}  Qa5 {[%clk 0:02:38]} 11. Bf4 {[%clk 0:01:18]}  e5 {[%clk 0:02:33]} 12. Bg5 {[%clk 0:01:11]}  Ng4 {[%clk 0:02:13]} 13. Qd2 {[%clk 0:01:10]}  Bxg5 {[%clk 0:02:12]} 14. Qxg5 {[%clk 0:01:11]}  Nxf2 {[%clk 0:02:12]} 15. Bc4 {[%clk 0:00:40]}  Nxh1 {[%clk 0:02:09]} 16. Rxd6 {[%clk 0:00:22]}  Qc5 {[%clk 0:01:51]} 17. Rd8 {[%clk 0:00:15]}  Be6 {[%clk 0:01:35]} 18. Bxe6 {[%clk 0:00:13]}  fxe6 {[%clk 0:01:35]} 19. Rd7 {[%clk 0:00:13]}  Rf1+ {[%clk 0:01:31]} 20. Kd2 {[%clk 0:00:12]}  Qf2+ {[%clk 0:01:23]} 21. Ne2 {[%clk 0:00:12]}  Qe1+ {[%clk 0:00:59]} 22. Ke3 {[%clk 0:00:09]}  Qf2+ {[%clk 0:00:59]} 23. Kd2 {[%clk 0:00:08]}  Qf6 {[%clk 0:00:59]} 24. Qe3 {[%clk 0:00:06]}  Nf2 {[%clk 0:00:57]} 25. Qc5 {[%clk 0:00:04]}  Rd1+ {[%clk 0:00:55]} 0-1


[Site "https://www.chess.com"]

[Event "Titled Tuesday Blitz May 4 2021"]
[White "Vlassov, Nikolai"]
[Black "Seul, Georg"]
[WhiteFideId "4103360"]
[BlackFideId "4601653"]
[WhiteElo "2407"]
[BlackElo "2332"]
[Result "1/2-1/2"]
[Round "08"]
[TimeControl "180+1"]
[Date "2021.05.04"]
[WhiteClock "0:00:13"]
[BlackClock "0:00:07"]

1. e4 {[%clk 0:03:00]}  e5 {[%clk 0:02:59]} 2. Bc4 {[%clk 0:03:00]}  Nf6 {[%clk 0:02:58]} 3. d3 {[%clk 0:03:00]}  Nc6 {[%clk 0:02:58]} 4. Nf3 {[%clk 0:03:00]}  Bc5 {[%clk 0:02:56]} 5. Bg5 {[%clk 0:02:58]}  h6 {[%clk 0:02:55]} 6. Bh4 {[%clk 0:02:58]}  d6 {[%clk 0:02:53]} 7. Nc3 {[%clk 0:02:58]}  Nd4 {[%clk 0:02:31]} 8. Nd5 {[%clk 0:02:31]}  g5 {[%clk 0:02:01]} 9. Nxg5 {[%clk 0:02:31]}  Nxd5 {[%clk 0:01:59]} 10. Qh5 {[%clk 0:02:30]}  hxg5 {[%clk 0:01:40]} 11. Qxh8+ {[%clk 0:02:29]}  Kd7 {[%clk 0:01:39]} 12. Qxd8+ {[%clk 0:02:27]}  Kxd8 {[%clk 0:01:39]} 13. Bxg5+ {[%clk 0:02:27]}  f6 {[%clk 0:01:32]} 14. Bxd5 {[%clk 0:02:23]}  fxg5 {[%clk 0:01:31]} 15. Kd2 {[%clk 0:02:18]}  c6 {[%clk 0:01:30]} 16. Bb3 {[%clk 0:02:03]}  Ke7 {[%clk 0:01:28]} 17. h4 {[%clk 0:01:56]}  g4 {[%clk 0:01:28]} 18. Raf1 {[%clk 0:01:47]}  Nxb3+ {[%clk 0:01:26]} 19. axb3 {[%clk 0:01:47]}  Be6 {[%clk 0:01:24]} 20. f4 {[%clk 0:01:43]}  gxf3 {[%clk 0:01:17]} 21. gxf3 {[%clk 0:01:42]}  Rg8 {[%clk 0:01:12]} 22. Rh2 {[%clk 0:01:42]}  Rg6 {[%clk 0:00:59]} 23. f4 {[%clk 0:01:39]}  exf4 {[%clk 0:00:58]} 24. Rxf4 {[%clk 0:01:39]}  Bd4 {[%clk 0:00:58]} 25. h5 {[%clk 0:01:32]}  Rh6 {[%clk 0:00:58]} 26. Rf1 {[%clk 0:01:23]}  Be5 {[%clk 0:00:55]} 27. Rh4 {[%clk 0:01:17]}  Bf6 {[%clk 0:00:50]} 28. Rh2 {[%clk 0:01:14]}  Bf7 {[%clk 0:00:47]} 29. Rf5 {[%clk 0:01:12]}  a5 {[%clk 0:00:33]} 30. Kc1 {[%clk 0:01:08]}  b5 {[%clk 0:00:31]} 31. c4 {[%clk 0:01:06]}  Be6 {[%clk 0:00:30]} 32. Rf1 {[%clk 0:01:01]}  b4 {[%clk 0:00:28]} 33. Kc2 {[%clk 0:00:58]}  c5 {[%clk 0:00:28]} 34. Ra1 {[%clk 0:00:57]}  Bf7 {[%clk 0:00:26]} 35. Rxa5 {[%clk 0:00:57]}  Rxh5 {[%clk 0:00:25]} 36. Ra7+ {[%clk 0:00:57]}  Ke6 {[%clk 0:00:25]} 37. Rf2 {[%clk 0:00:44]}  Bg6 {[%clk 0:00:25]} 38. Rg2 {[%clk 0:00:38]}  Rg5 {[%clk 0:00:21]} 39. Rh2 {[%clk 0:00:35]}  Be5 {[%clk 0:00:16]} 40. Rf2 {[%clk 0:00:35]}  Bh5 {[%clk 0:00:14]} 41. Rh7 {[%clk 0:00:31]}  Bg6 {[%clk 0:00:12]} 42. Rh6 {[%clk 0:00:29]}  Rg1 {[%clk 0:00:11]} 43. Rh3 {[%clk 0:00:17]}  Bd4 {[%clk 0:00:10]} 44. Rfh2 {[%clk 0:00:16]}  Ke5 {[%clk 0:00:10]} 45. Rf3 {[%clk 0:00:14]}  Be8 {[%clk 0:00:06]} 46. Rf5+ {[%clk 0:00:13]}  Ke6 {[%clk 0:00:05]} 47. Rh6+ {[%clk 0:00:14]}  Ke7 {[%clk 0:00:05]} 48. Rh7+ {[%clk 0:00:13]}  Ke6 {[%clk 0:00:06]} 49. Rh6+ {[%clk 0:00:14]}  Ke7 {[%clk 0:00:06]} 50. Rh7+ {[%clk 0:00:13]}  Ke6 {[%clk 0:00:07]} 51. Rh6+ {[%clk 0:00:13]} 1/2-1/2


[Site "https://www.chess.com"]

[Event "Titled Tuesday Blitz May 4 2021"]
[White "Vukovic, Zdravko"]
[Black "Mezentsev, Ivan"]
[WhiteFideId "900877"]
[BlackFideId "13706195"]
[WhiteElo "2493"]
[BlackElo "2295"]
[Result "1-0"]
[Round "08"]
[TimeControl "180+1"]
[Date "2021.05.04"]
[WhiteClock "0:00:28"]
[BlackClock "0:00:05"]

1. e4 {[%clk 0:02:59]}  d5 {[%clk 0:02:59]} 2. exd5 {[%clk 0:02:59]}  Nf6 {[%clk 0:02:59]} 3. Nc3 {[%clk 0:02:59]}  Nxd5 {[%clk 0:02:57]} 4. Nxd5 {[%clk 0:02:59]}  Qxd5 {[%clk 0:02:57]} 5. Qf3 {[%clk 0:02:59]}  Be6 {[%clk 0:02:52]} 6. Bd3 {[%clk 0:02:59]}  Nc6 {[%clk 0:02:49]} 7. Be4 {[%clk 0:02:49]}  Qd7 {[%clk 0:02:40]} 8. c3 {[%clk 0:02:45]}  O-O-O {[%clk 0:02:13]} 9. d4 {[%clk 0:02:45]}  f5 {[%clk 0:02:05]} 10. Bxc6 {[%clk 0:02:40]}  bxc6 {[%clk 0:02:04]} 11. Qe2 {[%clk 0:02:36]}  c5 {[%clk 0:01:44]} 12. Nf3 {[%clk 0:02:22]}  Bd5 {[%clk 0:01:40]} 13. O-O {[%clk 0:02:04]}  cxd4 {[%clk 0:01:20]} 14. cxd4 {[%clk 0:02:03]}  Qa4 {[%clk 0:00:51]} 15. b3 {[%clk 0:01:58]}  Qa5 {[%clk 0:00:48]} 16. Bf4 {[%clk 0:01:47]}  e6 {[%clk 0:00:47]} 17. Ne5 {[%clk 0:01:35]}  Bd6 {[%clk 0:00:45]} 18. Rac1 {[%clk 0:01:32]}  g5 {[%clk 0:00:38]} 19. Nc4 {[%clk 0:00:44]}  Bxc4 {[%clk 0:00:33]} 20. bxc4 {[%clk 0:00:43]}  Bxf4 {[%clk 0:00:28]} 21. Qxe6+ {[%clk 0:00:42]}  Rd7 {[%clk 0:00:23]} 22. Rb1 {[%clk 0:00:42]}  g4 {[%clk 0:00:16]} 23. c5 {[%clk 0:00:38]}  c6 {[%clk 0:00:07]} 24. Qxc6+ {[%clk 0:00:35]}  Kd8 {[%clk 0:00:05]} 25. Qa8+ {[%clk 0:00:29]}  Ke7 {[%clk 0:00:05]} 26. Qxh8 {[%clk 0:00:28]} 1-0


[Site "https://www.chess.com"]

[Event "Titled Tuesday Blitz May 4 2021"]
[White "Wagh Suyog"]
[Black "Vasquez Schroeder, Rodrigo"]
[WhiteFideId "25071688"]
[BlackFideId "3400042"]
[WhiteElo "2219"]
[BlackElo "2572"]
[Result "0-1"]
[Round "08"]
[TimeControl "180+1"]
[Date "2021.05.04"]
[WhiteClock "0:00:03"]
[BlackClock "0:00:08"]

1. e4 {[%clk 0:03:00]}  c5 {[%clk 0:02:58]} 2. Nf3 {[%clk 0:03:00]}  d6 {[%clk 0:02:58]} 3. g3 {[%clk 0:03:01]}  Nc6 {[%clk 0:02:58]} 4. Bg2 {[%clk 0:03:01]}  e5 {[%clk 0:02:58]} 5. O-O {[%clk 0:03:02]}  g6 {[%clk 0:02:58]} 6. c3 {[%clk 0:03:01]}  Bg7 {[%clk 0:02:59]} 7. Na3 {[%clk 0:02:56]}  Nf6 {[%clk 0:02:57]} 8. Re1 {[%clk 0:02:56]}  O-O {[%clk 0:02:56]} 9. h3 {[%clk 0:02:56]}  Re8 {[%clk 0:02:56]} 10. Nc2 {[%clk 0:02:54]}  h6 {[%clk 0:02:53]} 11. d4 {[%clk 0:02:51]}  exd4 {[%clk 0:02:43]} 12. cxd4 {[%clk 0:02:52]}  Nxe4 {[%clk 0:02:38]} 13. dxc5 {[%clk 0:02:51]}  dxc5 {[%clk 0:02:35]} 14. Qxd8 {[%clk 0:02:51]}  Nxd8 {[%clk 0:02:36]} 15. Nd2 {[%clk 0:02:42]}  Nf6 {[%clk 0:02:35]} 16. Rxe8+ {[%clk 0:02:43]}  Nxe8 {[%clk 0:02:35]} 17. Ne4 {[%clk 0:02:44]}  Ne6 {[%clk 0:02:31]} 18. Be3 {[%clk 0:02:44]}  Bf8 {[%clk 0:02:29]} 19. Rd1 {[%clk 0:02:41]}  Rb8 {[%clk 0:02:25]} 20. f4 {[%clk 0:02:32]}  b6 {[%clk 0:02:21]} 21. g4 {[%clk 0:02:33]}  Bb7 {[%clk 0:02:19]} 22. f5 {[%clk 0:02:33]}  gxf5 {[%clk 0:02:18]} 23. gxf5 {[%clk 0:02:34]}  N6g7 {[%clk 0:02:18]} 24. Ng3 {[%clk 0:01:55]}  Bxg2 {[%clk 0:02:11]} 25. Kxg2 {[%clk 0:01:56]}  h5 {[%clk 0:02:10]} 26. h4 {[%clk 0:01:57]}  Nf6 {[%clk 0:02:08]} 27. Bg5 {[%clk 0:01:49]}  Nge8 {[%clk 0:02:02]} 28. Kf3 {[%clk 0:01:41]}  Rc8 {[%clk 0:01:48]} 29. Ne3 {[%clk 0:01:40]}  Bg7 {[%clk 0:01:43]} 30. b3 {[%clk 0:01:10]}  b5 {[%clk 0:01:40]} 31. Rc1 {[%clk 0:01:08]}  Kf8 {[%clk 0:01:23]} 32. Ng2 {[%clk 0:01:04]}  Nd6 {[%clk 0:01:20]} 33. Nf4 {[%clk 0:01:01]}  Ng4 {[%clk 0:01:14]} 34. Nfxh5 {[%clk 0:00:45]}  Ne5+ {[%clk 0:01:13]} 35. Ke2 {[%clk 0:00:46]}  Bh8 {[%clk 0:00:56]} 36. Rd1 {[%clk 0:00:41]}  Ne8 {[%clk 0:00:53]} 37. f6 {[%clk 0:00:39]}  Nc6 {[%clk 0:00:49]} 38. Nf5 {[%clk 0:00:33]}  Nc7 {[%clk 0:00:34]} 39. Bh6+ {[%clk 0:00:14]}  Kg8 {[%clk 0:00:31]} 40. Bg7 {[%clk 0:00:12]}  Ne6 {[%clk 0:00:28]} 41. Nh6+ {[%clk 0:00:06]}  Kh7 {[%clk 0:00:28]} 42. Nxf7 {[%clk 0:00:07]}  Bxg7 {[%clk 0:00:27]} 43. fxg7 {[%clk 0:00:07]}  Kg6 {[%clk 0:00:25]} 44. Nh8+ {[%clk 0:00:03]}  Kxh5 {[%clk 0:00:23]} 45. Rg1 {[%clk 0:00:03]}  Ncd4+ {[%clk 0:00:20]} 46. Kd3 {[%clk 0:00:04]}  Rg8 {[%clk 0:00:16]} 47. Nf7 {[%clk 0:00:03]}  Nf5 {[%clk 0:00:14]} 48. Ke4 {[%clk 0:00:02]}  Rxg7 {[%clk 0:00:13]} 49. Rxg7 {[%clk 0:00:01]}  Nfxg7 {[%clk 0:00:13]} 50. Nd6 {[%clk 0:00:01]}  a6 {[%clk 0:00:12]} 51. Kd5 {[%clk 0:00:02]}  Kxh4 {[%clk 0:00:11]} 52. Ne4 {[%clk 0:00:03]}  Kg4 {[%clk 0:00:09]} 53. Nxc5 {[%clk 0:00:03]}  Nxc5 {[%clk 0:00:05]} 54. Kxc5 {[%clk 0:00:04]}  Ne6+ {[%clk 0:00:06]} 55. Kb6 {[%clk 0:00:05]}  Nd4 {[%clk 0:00:06]} 56. Kxa6 {[%clk 0:00:05]}  b4 {[%clk 0:00:06]} 57. Ka5 {[%clk 0:00:04]}  Nc2 {[%clk 0:00:07]} 58. Kb5 {[%clk 0:00:05]}  Kf4 {[%clk 0:00:07]} 59. Kc4 {[%clk 0:00:05]}  Ke3 {[%clk 0:00:08]} 60. a4 {[%clk 0:00:05]}  bxa3 {[%clk 0:00:08]} 61. Kc3 {[%clk 0:00:06]}  a2 {[%clk 0:00:08]} 62. Kxc2 {[%clk 0:00:03]}  a1=Q {[%clk 0:00:08]} 63. b4 {[%clk 0:00:03]}  Kd4 {[%clk 0:00:08]} 0-1


[Site "https://www.chess.com"]